[Event "14th HSG Open 2019-BC"]
[Site "Hilversum"]
[Date "2019.06.22"]
[Round "3.4"]
[White "Beusen, Frank"]
[Black "Nitrauw, Peter"]
[Result "0-1"]
[ECO "D88"]
[WhiteElo "1540"]
[BlackElo "1545"]
[Annotator "NA"]
[PlyCount "128"]
[EventDate "2019.06.21"]
[EventType "swiss"]
[EventCountry "NED"]
[SourceTitle "playchess.com"]
[Source "ChessBase"]
[SourceQuality "1"]
[TimeControl "6600+10"]

1. d4 {[%emt 0:00:00]} Nf6 {[%emt 0:00:00]} 2. c4 {[%emt 0:00:15]} g6 {[%emt 0:00:11]} 3. Nc3 {[%emt 0:00:21]} d5 {[%emt 0:00:32]} 4. cxd5 {[%emt 0:00:29]} Nxd5 {[%emt 0:00:26]} 5. e4 {[%emt 0:00:20]} Nxc3 {[%emt 0:00:23]} 6. bxc3 {[%emt 0:00:31]} c5 {[%emt 0:00:28]} 7. Bc4 {[%emt 0:00:47]} Bg7 {[%emt 0:00:25]} 8. Ne2 {[%emt 0:00:38]} Nc6 {[%emt 0:00:27]} 9. Be3 {[%emt 0:00:45]} O-O {[%emt 0:01:33]} 10. O-O {[%emt 0:00:13]} cxd4 {[%emt 0:00:52]} 11. cxd4 {[%emt 0:00:18]} b6 {[%emt 0:00:40]} 12. Rc1 {[%emt 0:01:23]} Bb7 {[%emt 0:00:20]} 13. f3 {[%emt 0:07:42]} Rc8 {[%emt 0:01:16]} 14. Qd2 {[%emt 0:01:21]} e6 {[%emt 0:01:29]} 15. Rfd1 {[%emt 0:01:31]} Qe7 {[%emt 0:00:35]} 16. f4 {[%emt 0:05:40]} Rfd8 {[%emt 0:01:12]} 17. d5 {[%emt 0:02:34]} Na5 {[%emt 0:01:30]} 18. d6 {[%emt 0:04:34]} Qd7 {[%emt 0:01:15]} 19. Qd3 {[%emt 0:03:14]} Rxc4 {[%emt 0:01:53]} 20. Rxc4 {[%emt 0:02:12]} Ba6 {[%emt 0:00:10]} 21. Rc7 {[%emt 0:02:28]} Bxd3 {[%emt 0:01:46]} 22. Rxd7 {[%emt 0:00:54]} Rxd7 {[%emt 0:00:11]} 23. Rxd3 {[%emt 0:00:39]} e5 {[%emt 0:00:42]} 24. Bd2 {[%emt 0:06:25]} Nc4 {[%emt 0:00:54]} 25. Bc3 {[%emt 0:04:28]} Rxd6 {[%emt 0:02:02]} 26. Rd5 {[%emt 0:03:30]} Rxd5 {[%emt 0:02:30]} 27. exd5 {[%emt 0:00:17]} f6 {[%emt 0:00:41]} 28. Kf2 {[%emt 0:02:17]} Kf7 {[%emt 0:00:45]} 29. Kf3 {[%emt 0:01:03]} Ke7 {[%emt 0:00:46]} 30. fxe5 {[%emt 0:01:33]} fxe5 {[%emt 0:01:04]} 31. Ke4 {[%emt 0:00:23]} Nd6+ {[%emt 0:00:40]} 32. Kd3 {[%emt 0:01:06]} a5 {[%emt 0:01:36]} 33. Ng3 {[%emt 0:01:47]} Bf6 {[%emt 0:03:09]} 34. a4 {[%emt 0:01:15]} e4+ {[%emt 0:00:59]} 35. Kc2 {[%emt 0:04:16]} e3 {[%emt 0:02:27]} 36. Ne2 {[%emt 0:00:41]} Ne4 {[%emt 0:01:08]} 37. Bxf6+ {[%emt 0:01:04]} Nxf6 {[%emt 0:00:14]} 38. Nc3 {[%emt 0:00:54]} Kd6 {[%emt 0:00:16]} 39. Kd3 {[%emt 0:02:50]} Nxd5 {[%emt 0:00:20]} 40. Ne4+ {[%emt 0:01:52]} Ke5 {[%emt 0:00:35]} 41. Ng5 {[%emt 0:01:08]} h5 {[%emt 0:01:02]} 42. Nf3+ {[%emt 0:02:12]} Kd6 {[%emt 0:01:20]} 43. Kd4 {[%emt 0:02:53]} g5 {[%emt 0:01:28]} 44. Nxg5 {[%emt 0:01:04]} e2 {[%emt 0:01:31]} 45. Nf3 {[%emt 0:00:26]} Nf4 {[%emt 0:01:20]} 46. Ne1 {[%emt 0:00:48]} h4 {[%emt 0:01:13]} 47. g3 {[%emt 0:00:22]} hxg3 {[%emt 0:00:24]} 48. hxg3 {[%emt 0:00:20]} Ne6+ {[%emt 0:00:31]} 49. Kc4 {[%emt 0:01:09]} Kc6 {[%emt 0:00:35]} 50. g4 {[%emt 0:01:33]} Ng5 {[%emt 0:01:36]} 51. Kd3 {[%emt 0:01:46]} Kc5 {[%emt 0:00:50]} 52. Nc2 {[%emt 0:02:00]} e1=Q {[%emt 0:01:13]} 53. Nxe1 {[%emt 0:00:27]} Kb4 {[%emt 0:00:06]} 54. Nc2+ {[%emt 0:02:37]} Kxa4 {[%emt 0:00:11]} 55. Kc4 {[%emt 0:00:42]} b5+ {[%emt 0:01:29]} 56. Kc3 {[%emt 0:00:53]} Ne6 {[%emt 0:00:35]} 57. Kb2 {[%emt 0:01:27]} b4 {[%emt 0:00:42]} 58. Ne1 {[%emt 0:01:52]} Kb5 {[%emt 0:00:27]} 59. Nf3 {[%emt 0:00:38]} a4 {[%emt 0:00:53]} 60. g5 {[%emt 0:00:19]} Kc4 {[%emt 0:00:30]} 61. g6 {[%emt 0:00:48]} a3+ {[%emt 0:00:53]} 62. Kb1 {[%emt 0:01:01]} Kb3 {[%emt 0:01:04]} 63. Nd4+ {[%emt 0:01:52]} Nxd4 {[%emt 0:00:10]} 64. g7 {[%emt 0:01:31]} a2+ 0-1

[Event "14th HSG Open 2019-BC"]
[Site "Hilversum"]
[Date "2019.06.22"]
[Round "4.1"]
[White "Krosenbrink, Marcel"]
[Black "De Winter, Arthur"]
[Result "1/2-1/2"]
[ECO "B23"]
[WhiteElo "1886"]
[BlackElo "1759"]
[Annotator "NA"]
[PlyCount "43"]
[EventDate "2019.06.21"]
[EventType "swiss"]
[EventCountry "NED"]
[SourceTitle "playchess.com"]
[Source "ChessBase"]
[SourceQuality "1"]
[TimeControl "6600+10"]

1. e4 {[%emt 0:00:00]} c5 {[%emt 0:00:00]} 2. Nc3 {[%emt 0:00:00]} e6 {[%emt 0:00:25]} 3. f4 {[%emt 0:00:04]} Nc6 {[%emt 0:00:17]} 4. Nf3 {[%emt 0:00:05]} a6 {[%emt 0:00:58]} 5. a4 {[%emt 0:00:06]} d6 {[%emt 0:00:37]} 6. Bc4 {[%emt 0:00:16]} Nf6 {[%emt 0:00:27]} 7. Bb3 {[%emt 0:05:09]} Be7 {[%emt 0:02:09]} 8. d3 {[%emt 0:01:33]} O-O {[%emt 0:00:54]} 9. O-O {[%emt 0:00:05]} b6 {[%emt 0:01:58]} 10. Qe1 {[%emt 0:00:18]} Bb7 {[%emt 0:03:10]} 11. Qg3 {[%emt 0:05:47]} d5 {[%emt 0:13:05]} 12. e5 {[%emt 0:04:18]} Nd7 {[%emt 0:00:20]} 13. f5 {[%emt 0:04:05]} Kh8 {[%emt 0:03:20]} 14. Bf4 {[%emt 0:14:15]} d4 {[%emt 0:11:33]} 15. Ne4 {[%emt 0:06:48]} exf5 {[%emt 0:03:00]} 16. Neg5 {[%emt 0:12:47]} Bxg5 {[%emt 0:16:13]} 17. Bxg5 {[%emt 0:02:17]} f6 {[%emt 0:00:41]} 18. exf6 {[%emt 0:01:19]} Nxf6 {[%emt 0:00:12]} 19. Nh4 {[%emt 0:04:21]} Nh5 {[%emt 0:04:55]} 20. Bxd8 {[%emt 0:02:41]} Nxg3 {[%emt 0:00:09]} 21. hxg3 {[%emt 0:04:39]} Raxd8 {[%emt 0:00:25]} 22. Nxf5 {[%emt 0:01:04]} 1/2-1/2

[Event "14th HSG Open 2019-BC"]
[Site "Hilversum"]
[Date "2019.06.22"]
[Round "4.2"]
[White "Arnold, Frieda"]
[Black "Flohr, Ron"]
[Result "1-0"]
[ECO "A04"]
[WhiteElo "1675"]
[BlackElo "1883"]
[Annotator "NA"]
[PlyCount "83"]
[EventDate "2019.06.21"]
[EventType "swiss"]
[EventCountry "NED"]
[SourceTitle "playchess.com"]
[Source "ChessBase"]
[SourceQuality "1"]
[TimeControl "6600+10"]

1. Nf3 {[%emt 0:01:23]} d6 {[%emt 0:00:00]} 2. g3 {[%emt 0:00:23]} Nd7 {[%emt 0:00:06]} 3. Bg2 {[%emt 0:00:09]} c6 {[%emt 0:00:05]} 4. O-O {[%emt 0:00:25]} h6 {[%emt 0:00:29]} 5. e4 {[%emt 0:00:23]} g5 {[%emt 0:00:11]} 6. d4 {[%emt 0:00:40]} Bg7 {[%emt 0:00:06]} 7. Re1 {[%emt 0:01:42]} Qc7 {[%emt 0:00:11]} 8. c3 {[%emt 0:03:29]} Nf8 {[%emt 0:02:45]} 9. Na3 {[%emt 0:04:14]} Ng6 {[%emt 0:00:31]} 10. Nc2 {[%emt 0:00:57]} Bd7 {[%emt 0:04:23]} 11. Ne3 {[%emt 0:03:22]} Qc8 {[%emt 0:00:47]} 12. Qd3 {[%emt 0:02:20]} g4 {[%emt 0:07:19]} 13. Nd2 {[%emt 0:00:13]} h5 {[%emt 0:01:02]} 14. Nf5 {[%emt 0:00:22]} Bf6 {[%emt 0:01:04]} 15. Nc4 {[%emt 0:01:49]} Kf8 {[%emt 0:04:35]} 16. a4 {[%emt 0:05:00]} h4 {[%emt 0:04:13]} 17. Nce3 {[%emt 0:02:10]} hxg3 {[%emt 0:02:17]} 18. fxg3 {[%emt 0:06:35]} Qc7 {[%emt 0:08:20]} 19. Nxg4 {[%emt 0:03:04]} e6 {[%emt 0:03:40]} 20. Nfh6 {[%emt 0:10:44]} Nxh6 {[%emt 0:06:55]} 21. Nxf6 {[%emt 0:03:26]} Ng8 {[%emt 0:02:40]} 22. Rf1 {[%emt 0:02:36]} e5 {[%emt 0:06:43]} 23. Qf3 {[%emt 0:01:44]} Bh3 {[%emt 0:01:18]} 24. Bxh3 {[%emt 0:03:34]} Rxh3 {[%emt 0:00:12]} 25. Qf5 {[%emt 0:00:09]} Nxf6 {[%emt 0:06:20]} 26. Qxh3 {[%emt 0:01:35]} Ng8 {[%emt 0:00:08]} 27. Qf5 {[%emt 0:00:41]} Kg7 {[%emt 0:00:13]} 28. Bg5 {[%emt 0:02:40]} Re8 {[%emt 0:01:55]} 29. Bf6+ {[%emt 0:02:06]} Nxf6 {[%emt 0:00:12]} 30. Qxf6+ {[%emt 0:00:05]} Kg8 {[%emt 0:00:09]} 31. Rae1 {[%emt 0:02:43]} Re6 {[%emt 0:02:30]} 32. Qf5 {[%emt 0:00:37]} Re7 {[%emt 0:02:02]} 33. h4 {[%emt 0:02:00]} exd4 {[%emt 0:02:58]} 34. cxd4 {[%emt 0:01:10]} Qb6 {[%emt 0:00:48]} 35. Qf6 {[%emt 0:00:52]} Qb3 {[%emt 0:04:46]} 36. Qg5 {[%emt 0:06:22]} Qxb2 {[%emt 0:00:57]} 37. h5 {[%emt 0:02:54]} Qxd4+ {[%emt 0:00:35]} 38. Kg2 {[%emt 0:04:13]} Re6 {[%emt 0:04:12]} 39. hxg6 {[%emt 0:03:01]} Rxg6 {[%emt 0:00:11]} 40. Qf4 {[%emt 0:04:33]} Qg7 {[%emt 0:01:32]} 41. Rf2 {[%emt 0:02:33]} Rg4 {[%emt 0:01:07]} 42. Qxd6 {[%emt 0:01:12]} 1-0

[Event "14th HSG Open 2019-BC"]
[Site "Hilversum"]
[Date "2019.06.22"]
[Round "4.3"]
[White "Nitrauw, Peter"]
[Black "Boons, Joris"]
[Result "0-1"]
[ECO "C55"]
[WhiteElo "1545"]
[BlackElo "1512"]
[Annotator "NA"]
[PlyCount "73"]
[EventDate "2019.06.21"]
[EventType "swiss"]
[EventCountry "NED"]
[SourceTitle "playchess.com"]
[Source "ChessBase"]
[SourceQuality "1"]
[TimeControl "6600+10"]

1. e4 {[%emt 0:00:00]} e5 {[%emt 0:02:24]} 2. Nf3 {[%emt 0:00:12]} Nc6 {[%emt 0:00:10]} 3. Bc4 {[%emt 0:00:21]} Nf6 {[%emt 0:00:05]} 4. O-O {[%emt 0:00:48]} Bc5 {[%emt 0:01:02]} 5. d3 {[%emt 0:00:20]} h6 {[%emt 0:00:30]} 6. Be3 {[%emt 0:00:29]} Bb6 {[%emt 0:00:09]} 7. Nc3 {[%emt 0:00:23]} d6 {[%emt 0:00:12]} 8. h3 {[%emt 0:00:16]} Be6 {[%emt 0:00:36]} 9. Nd5 {[%emt 0:01:04]} Na5 {[%emt 0:03:49]} 10. Nxb6 {[%emt 0:02:15]} axb6 {[%emt 0:07:04]} 11. Bb5+ {[%emt 0:00:31]} Bd7 {[%emt 0:01:56]} 12. Bxd7+ {[%emt 0:00:56]} Qxd7 {[%emt 0:00:02]} 13. d4 {[%emt 0:01:38]} exd4 {[%emt 0:00:49]} 14. Bxd4 {[%emt 0:00:08]} Nc6 {[%emt 0:02:38]} 15. Re1 {[%emt 0:09:35]} Nxd4 {[%emt 0:03:55]} 16. Nxd4 {[%emt 0:02:43]} O-O {[%emt 0:04:08]} 17. Qf3 {[%emt 0:02:23]} Rfe8 {[%emt 0:01:30]} 18. Nf5 {[%emt 0:01:42]} Kh7 {[%emt 0:02:02]} 19. a3 {[%emt 0:04:05]} Re5 {[%emt 0:02:58]} 20. Qg3 {[%emt 0:02:30]} g6 {[%emt 0:02:36]} 21. Qh4 {[%emt 0:01:43]} gxf5 {[%emt 0:01:02]} 22. Qxf6 {[%emt 0:00:16]} fxe4 {[%emt 0:00:05]} 23. Rad1 {[%emt 0:00:36]} Rae8 {[%emt 0:00:47]} 24. f3 {[%emt 0:02:40]} e3 {[%emt 0:05:43]} 25. f4 {[%emt 0:02:21]} Re4 {[%emt 0:00:50]} 26. Qc3 {[%emt 0:02:22]} Qf5 {[%emt 0:00:47]} 27. Qxc7 {[%emt 0:01:44]} Rxf4 {[%emt 0:01:09]} 28. Qxb7 {[%emt 0:03:35]} Qxc2 {[%emt 0:02:43]} 29. Qxb6 {[%emt 0:02:07]} Rg8 {[%emt 0:02:40]} 30. Qb7 {[%emt 0:03:16]} e2 {[%emt 0:02:33]} 31. Rc1 {[%emt 0:00:46]} Qd2 {[%emt 0:00:49]} 32. Qc6 {[%emt 0:03:01]} Qd3 {[%emt 0:02:17]} 33. Qc3 {[%emt 0:02:55]} Qe4 {[%emt 0:01:38]} 34. Qc2 {[%emt 0:02:00]} Rxg2+ {[%emt 0:07:14]} 35. Kh1 {[%emt 0:00:04]} Rf1+ {[%emt 0:02:16]} 36. Rxf1 {[%emt 0:00:13]} exf1=Q+ {[%emt 0:00:19]} 37. Rxf1 {[%emt 0:00:11]} 0-1

[Event "14th HSG Open 2019-BC"]
[Site "Hilversum"]
[Date "2019.06.22"]
[Round "4.4"]
[White "Jacobsen, Raymond"]
[Black "Manshanden, Dennis"]
[Result "1-0"]
[ECO "E24"]
[WhiteElo "1358"]
[BlackElo "1208"]
[Annotator "NA"]
[PlyCount "107"]
[EventDate "2019.06.21"]
[EventType "swiss"]
[EventCountry "NED"]
[SourceTitle "playchess.com"]
[Source "ChessBase"]
[SourceQuality "1"]
[TimeControl "6600+10"]

1. d4 {[%emt 0:00:00]} Nf6 {[%emt 0:00:14]} 2. c4 {[%emt 0:00:18]} e6 {[%emt 0:00:08]} 3. Nc3 {[%emt 0:00:08]} Bb4 {[%emt 0:00:41]} 4. a3 {[%emt 0:01:07]} Bxc3+ {[%emt 0:00:05]} 5. bxc3 {[%emt 0:00:04]} b6 {[%emt 0:00:21]} 6. Nf3 {[%emt 0:00:32]} Bb7 {[%emt 0:00:11]} 7. e3 {[%emt 0:00:20]} O-O {[%emt 0:01:32]} 8. Bd3 {[%emt 0:01:24]} d6 {[%emt 0:00:44]} 9. O-O {[%emt 0:00:50]} Nbd7 {[%emt 0:01:08]} 10. Re1 {[%emt 0:00:43]} c5 {[%emt 0:01:35]} 11. e4 {[%emt 0:07:53]} Qc7 {[%emt 0:06:14]} 12. Qe2 {[%emt 0:16:35]} h6 {[%emt 0:09:59]} 13. d5 {[%emt 0:04:59]} Rfe8 {[%emt 0:04:16]} 14. Nh4 {[%emt 0:04:19]} exd5 {[%emt 0:02:28]} 15. Nf5 {[%emt 0:13:43]} dxe4 {[%emt 0:02:48]} 16. Bc2 {[%emt 0:00:21]} Ne5 {[%emt 0:07:46]} 17. Bf4 {[%emt 0:02:46]} Rad8 {[%emt 0:03:19]} 18. Qe3 {[%emt 0:08:11]} Qd7 {[%emt 0:11:35]} 19. Nxg7 {[%emt 0:07:35]} Neg4 {[%emt 0:07:06]} 20. Nxe8 {[%emt 0:05:15]} Nxe3 {[%emt 0:04:30]} 21. Nxf6+ {[%emt 0:00:11]} Kg7 {[%emt 0:01:40]} 22. Nxd7 {[%emt 0:00:22]} Nxc2 {[%emt 0:00:01]} 23. Nxb6 {[%emt 0:09:20]} axb6 {[%emt 0:00:29]} 24. g3 {[%emt 0:02:40]} Nxa1 {[%emt 0:00:46]} 25. Rxa1 Ba6 {[%emt 0:00:21]} 26. Rd1 {[%emt 0:00:20]} Bxc4 {[%emt 0:01:06]} 27. Rxd6 {[%emt 0:00:49]} Rxd6 {[%emt 0:00:07]} 28. Bxd6 {[%emt 0:00:07]} Bd3 {[%emt 0:00:30]} 29. Kg2 {[%emt 0:01:30]} Kg6 {[%emt 0:02:11]} 30. f4 {[%emt 0:00:11]} e3 {[%emt 0:01:29]} 31. Bc7 {[%emt 0:03:03]} e2 {[%emt 0:00:33]} 32. Kf2 {[%emt 0:00:06]} b5 {[%emt 0:00:12]} 33. Bb6 {[%emt 0:00:26]} c4 {[%emt 0:00:17]} 34. h3 {[%emt 0:01:57]} h5 35. Bc7 {[%emt 0:01:15]} Kf5 {[%emt 0:01:34]} 36. Be5 Ke4 {[%emt 0:02:20]} 37. Bf6 {[%emt 0:01:02]} e1=Q+ {[%emt 0:01:42]} 38. Kxe1 {[%emt 0:00:17]} Kf3 {[%emt 0:00:43]} 39. Bh4 {[%emt 0:01:06]} Ke3 40. Bf6 {[%emt 0:01:22]} Be4 {[%emt 0:00:24]} 41. Kf1 Kf3 42. Bh4 {[%emt 0:01:11]} Ke3 {[%emt 0:01:57]} 43. Bf6 {[%emt 0:00:09]} Kd3 {[%emt 0:01:18]} 44. Kf2 {[%emt 0:02:45]} Kc2 {[%emt 0:00:10]} 45. Ke3 Kb3 {[%emt 0:00:13]} 46. g4 {[%emt 0:00:43]} hxg4 {[%emt 0:00:59]} 47. hxg4 {[%emt 0:00:12]} Kxa3 {[%emt 0:00:28]} 48. Kd4 {[%emt 0:00:58]} b4 {[%emt 0:00:58]} 49. Be7 {[%emt 0:00:34]} Ka4 {[%emt 0:01:30]} 50. Bxb4 {[%emt 0:00:08]} Kb5 {[%emt 0:00:11]} 51. g5 {[%emt 0:00:16]} Kc6 {[%emt 0:00:06]} 52. Kxc4 {[%emt 0:00:19]} Kd7 {[%emt 0:00:11]} 53. Kd4 {[%emt 0:00:08]} Ke6 {[%emt 0:00:09]} 54. c4 {[%emt 0:00:31]} 1-0

[Event "14th HSG Open 2019-BC"]
[Site "Hilversum"]
[Date "2019.06.23"]
[Round "5.1"]
[White "De Winter, Arthur"]
[Black "Arnold, Frieda"]
[Result "1-0"]
[ECO "B32"]
[WhiteElo "1759"]
[BlackElo "1675"]
[Annotator "NA"]
[PlyCount "73"]
[EventDate "2019.06.21"]
[EventType "swiss"]
[EventCountry "NED"]
[SourceTitle "playchess.com"]
[Source "ChessBase"]
[SourceQuality "1"]
[TimeControl "6600+10"]

1. e4 {[%emt 0:00:00]} c5 {[%emt 0:00:08]} 2. Nf3 {[%emt 0:00:00]} Nc6 {[%emt 0:00:03]} 3. d4 {[%emt 0:00:20]} cxd4 {[%emt 0:00:08]} 4. Nxd4 {[%emt 0:00:07]} e5 {[%emt 0:00:04]} 5. Nb5 {[%emt 0:00:40]} d6 {[%emt 0:00:07]} 6. N1c3 {[%emt 0:00:34]} a6 {[%emt 0:00:17]} 7. Na3 {[%emt 0:00:08]} b5 {[%emt 0:00:39]} 8. Nd5 {[%emt 0:00:15]} Nge7 {[%emt 0:00:18]} 9. Be3 {[%emt 0:03:38]} Nxd5 {[%emt 0:07:03]} 10. exd5 {[%emt 0:00:18]} Ne7 {[%emt 0:01:32]} 11. c4 {[%emt 0:02:46]} Nf5 {[%emt 0:07:10]} 12. Bd2 {[%emt 0:01:18]} Qh4 {[%emt 0:06:58]} 13. Bd3 {[%emt 0:08:59]} Nd4 {[%emt 0:09:34]} 14. O-O {[%emt 0:02:56]} Be7 {[%emt 0:12:45]} 15. cxb5 {[%emt 0:08:17]} O-O {[%emt 0:00:53]} 16. Be3 {[%emt 0:10:58]} Bg4 {[%emt 0:04:55]} 17. f3 {[%emt 0:01:10]} Bc8 {[%emt 0:07:28]} 18. bxa6 {[%emt 0:05:06]} Bxa6 {[%emt 0:04:19]} 19. Bxa6 {[%emt 0:01:23]} Rxa6 {[%emt 0:00:05]} 20. Nc2 {[%emt 0:02:26]} Nf5 {[%emt 0:05:21]} 21. Qd3 {[%emt 0:05:33]} Nxe3 {[%emt 0:00:33]} 22. Nxe3 {[%emt 0:00:10]} Qa4 {[%emt 0:02:50]} 23. b3 {[%emt 0:00:26]} Qa5 {[%emt 0:01:15]} 24. a3 {[%emt 0:04:47]} Rfa8 {[%emt 0:01:14]} 25. Nc4 {[%emt 0:02:24]} Qc5+ {[%emt 0:00:51]} 26. Kh1 {[%emt 0:00:07]} Bg5 {[%emt 0:04:07]} 27. Rfb1 {[%emt 0:05:40]} Qf2 {[%emt 0:01:06]} 28. Rb2 {[%emt 0:01:35]} Qh4 {[%emt 0:00:21]} 29. g3 {[%emt 0:00:25]} Qh6 {[%emt 0:01:45]} 30. b4 {[%emt 0:00:19]} Bf6 {[%emt 0:01:17]} 31. Qe4 {[%emt 0:01:02]} Bg5 {[%emt 0:02:14]} 32. b5 {[%emt 0:00:31]} Ra4 {[%emt 0:01:06]} 33. Qc2 {[%emt 0:00:38]} Be3 {[%emt 0:00:31]} 34. b6 {[%emt 0:00:35]} Rxc4 {[%emt 0:10:12]} 35. Qxc4 {[%emt 0:00:55]} Bc5 {[%emt 0:00:04]} 36. b7 {[%emt 0:00:13]} Rb8 {[%emt 0:00:01]} 37. Qg4 {[%emt 0:00:53]} 1-0

[Event "14th HSG Open 2019-BC"]
[Site "Hilversum"]
[Date "2019.06.23"]
[Round "5.3"]
[White "Boons, Joris"]
[Black "Kohlrausch, Armin"]
[Result "1-0"]
[ECO "B27"]
[WhiteElo "1512"]
[BlackElo "1540"]
[Annotator "NA"]
[PlyCount "53"]
[EventDate "2019.06.21"]
[EventType "swiss"]
[EventCountry "NED"]
[SourceTitle "playchess.com"]
[Source "ChessBase"]
[SourceQuality "1"]
[TimeControl "6600+10"]

1. e4 {[%emt 0:07:48]} c5 {[%emt 0:00:00]} 2. Nf3 {[%emt 0:00:22]} g6 {[%emt 0:00:10]} 3. d4 {[%emt 0:00:10]} cxd4 {[%emt 0:00:58]} 4. Nxd4 {[%emt 0:00:12]} Bg7 {[%emt 0:00:39]} 5. Nc3 {[%emt 0:00:32]} Nc6 {[%emt 0:00:38]} 6. Be3 {[%emt 0:00:28]} a6 {[%emt 0:05:12]} 7. Bc4 {[%emt 0:02:00]} d6 {[%emt 0:02:56]} 8. Qd2 {[%emt 0:00:42]} Nf6 {[%emt 0:03:42]} 9. f3 {[%emt 0:02:58]} O-O {[%emt 0:01:11]} 10. Nxc6 {[%emt 0:06:54]} bxc6 {[%emt 0:00:19]} 11. O-O-O {[%emt 0:01:38]} Nd7 {[%emt 0:05:23]} 12. Bh6 {[%emt 0:01:36]} Bxh6 {[%emt 0:05:54]} 13. Qxh6 {[%emt 0:00:08]} Qb6 {[%emt 0:00:25]} 14. h4 {[%emt 0:01:12]} Rb8 {[%emt 0:00:42]} 15. h5 {[%emt 0:01:15]} g5 {[%emt 0:07:22]} 16. Qxg5+ {[%emt 0:02:36]} Kh8 {[%emt 0:00:11]} 17. Bb3 {[%emt 0:00:58]} Nf6 {[%emt 0:02:43]} 18. Rxd6 {[%emt 0:01:03]} Rg8 {[%emt 0:04:11]} 19. Qe5 {[%emt 0:02:32]} Be6 {[%emt 0:06:01]} 20. Nd5 {[%emt 0:04:57]} Qc5 {[%emt 0:06:44]} 21. Rxc6 {[%emt 0:03:22]} Qb5 {[%emt 0:08:15]} 22. c4 {[%emt 0:03:01]} Qa5 {[%emt 0:02:56]} 23. Rc7 {[%emt 0:05:02]} Rxg2 {[%emt 0:19:34]} 24. Rxe7 {[%emt 0:01:50]} Qd2+ {[%emt 0:03:11]} 25. Kb1 {[%emt 0:00:34]} Kg7 {[%emt 0:08:23]} 26. h6+ {[%emt 0:28:14]} Kg8 27. Qxb8+ 1-0

[Event "14th HSG Open 2019-BC"]
[Site "Hilversum"]
[Date "2019.06.23"]
[Round "5.4"]
[White "Nitrauw, Peter"]
[Black "Jacobsen, Raymond"]
[Result "0-1"]
[ECO "B21"]
[WhiteElo "1545"]
[BlackElo "1358"]
[Annotator "NA"]
[PlyCount "90"]
[EventDate "2019.06.21"]
[EventType "swiss"]
[EventCountry "NED"]
[SourceTitle "playchess.com"]
[Source "ChessBase"]
[SourceQuality "1"]
[TimeControl "6600+10"]

1. e4 {[%emt 0:00:00]} c5 {[%emt 0:00:00]} 2. d4 {[%emt 0:00:08]} cxd4 {[%emt 0:00:00]} 3. c3 {[%emt 0:00:21]} dxc3 {[%emt 0:00:17]} 4. Nxc3 {[%emt 0:00:19]} Nc6 {[%emt 0:00:04]} 5. Nf3 {[%emt 0:00:17]} d6 {[%emt 0:00:51]} 6. Bc4 {[%emt 0:00:36]} g6 {[%emt 0:00:55]} 7. O-O {[%emt 0:00:44]} Bg7 {[%emt 0:00:20]} 8. Qe2 {[%emt 0:00:38]} Nf6 {[%emt 0:01:45]} 9. Rd1 {[%emt 0:00:47]} Nd7 {[%emt 0:03:10]} 10. Bf4 {[%emt 0:02:07]} O-O {[%emt 0:04:09]} 11. Rac1 {[%emt 0:02:09]} Nde5 {[%emt 0:03:37]} 12. Nxe5 {[%emt 0:02:22]} Nxe5 {[%emt 0:00:10]} 13. Nb5 {[%emt 0:01:23]} Nxc4 {[%emt 0:09:07]} 14. Rxc4 {[%emt 0:00:46]} Be6 {[%emt 0:02:13]} 15. Ra4 {[%emt 0:01:57]} a6 {[%emt 0:05:24]} 16. Nc3 {[%emt 0:01:30]} b5 {[%emt 0:05:17]} 17. Rb4 {[%emt 0:00:44]} Qa5 {[%emt 0:01:18]} 18. a3 {[%emt 0:01:51]} Bxc3 {[%emt 0:00:25]} 19. bxc3 {[%emt 0:00:19]} Qxa3 {[%emt 0:00:09]} 20. Bh6 {[%emt 0:01:10]} Rfc8 {[%emt 0:05:49]} 21. e5 {[%emt 0:03:55]} Qxc3 {[%emt 0:01:02]} 22. Rbd4 {[%emt 0:00:46]} Rc4 {[%emt 0:04:39]} 23. Qe4 {[%emt 0:01:36]} Rac8 {[%emt 0:01:51]} 24. exd6 {[%emt 0:07:55]} Rxd4 {[%emt 0:06:11]} 25. Qxd4 {[%emt 0:00:31]} Qxd4 {[%emt 0:00:06]} 26. Rxd4 {[%emt 0:00:08]} exd6 {[%emt 0:00:06]} 27. Rxd6 {[%emt 0:00:10]} Ra8 {[%emt 0:00:05]} 28. Rb6 {[%emt 0:00:46]} Bc4 {[%emt 0:00:08]} 29. h3 {[%emt 0:00:35]} a5 {[%emt 0:00:16]} 30. f3 {[%emt 0:00:56]} a4 {[%emt 0:00:35]} 31. Bd2 {[%emt 0:00:46]} a3 {[%emt 0:00:15]} 32. Bc3 {[%emt 0:00:09]} a2 {[%emt 0:00:07]} 33. Ba1 {[%emt 0:00:11]} Rd8 {[%emt 0:00:18]} 34. Kh2 {[%emt 0:00:12]} Kf8 {[%emt 0:01:21]} 35. Bf6 {[%emt 0:00:23]} Ra8 {[%emt 0:01:13]} 36. Ba1 {[%emt 0:00:16]} Ke7 {[%emt 0:01:07]} 37. Rb7+ {[%emt 0:00:55]} Kd6 {[%emt 0:00:07]} 38. Rb6+ {[%emt 0:00:41]} Kc5 {[%emt 0:00:09]} 39. Rb7 {[%emt 0:00:24]} Re8 {[%emt 0:00:28]} 40. Bc3 {[%emt 0:00:39]} Re3 {[%emt 0:01:12]} 41. Bf6 {[%emt 0:01:03]} Kb4 {[%emt 0:03:14]} 42. Ra7 {[%emt 0:00:42]} Kb3 {[%emt 0:00:50]} 43. Kg3 {[%emt 0:01:35]} Re6 {[%emt 0:02:04]} 44. Ba1 {[%emt 0:01:57]} b4 {[%emt 0:00:38]} 45. Bd4 {[%emt 0:02:20]} Ra6 {[%emt 0:00:53]} 0-1